bitfinex/quotes_BTCUSD_20221001
["timestamp","ask_amount","ask_price","bid_price","bid_amount"]
[1664648685568,0.36081068,19269.0,19268.0,0.12952633]
[1664648685807,0.18266945,19269.0,19268.0,0.15546396]
[1664648686054,0.32054441,19270.0,19268.0,0.15546396]
[1664648686272,0.25964885,19270.0,19268.0,0.15546396]
[1664648686751,1.68677585,19270.0,19268.0,0.15546396]
[1664648687408,1.68677585,19270.0,19268.0,0.12952633]
[1664648687857,1.68677585,19270.0,19268.0,0.25937533]
[1664648688574,1.16781785,19270.0,19269.0,0.14979745]
[1664648688777,1.16781785,19270.0,19268.0,0.38922033]
[1664648689282,0.358518,19269.0,19268.0,0.38922033]
[1664648689514,1.16781785,19270.0,19268.0,0.38922033]
[1664648689515,1.22871341,19270.0,19268.0,0.38922033]
[1664648689742,0.25964885,19270.0,19268.0,0.38922033]
[1664648689954,0.21905134,19270.0,19268.0,0.38922033]
[1664648690419,0.358518,19269.0,19268.0,0.38922033]
[1664648690637,1.12722034,19270.0,19268.0,0.38922033]
[1664648690849,0.21905134,19270.0,19268.0,0.38922033]
[1664648691062,1.12722034,19270.0,19268.0,0.38922033]
[1664648691283,0.358518,19269.0,19268.0,0.38922033]
[1664648692646,0.658518,19269.0,19268.0,0.38922033]
[1664648692866,0.3,19269.0,19268.0,0.38922033]
[1664648693082,1.52615606,19270.0,19268.0,0.38922033]
[1664648693298,0.358518,19269.0,19268.0,0.38922033]
[1664648693524,1.48555855,19270.0,19268.0,0.38922033]
[1664648693784,0.358518,19269.0,19268.0,0.38922033]
[1664648694155,0.658518,19269.0,19268.0,0.38922033]
[1664648694372,0.3,19269.0,19268.0,0.38922033]
[1664648695630,0.3,19269.0,19268.0,0.38911549]
[1664648696050,1.16781785,19270.0,19268.0,0.38911549]
[1664648696325,0.358518,19269.0,19268.0,0.38911549]
[1664648696506,0.658518,19269.0,19268.0,0.38911549]
[1664648696937,0.3,19269.0,19268.0,0.38911549]
[1664648698089,1.16781785,19270.0,19268.0,0.38911549]
[1664648698283,0.3,19269.0,19268.0,0.38911549]
[1664648698742,0.25964885,19270.0,19268.0,0.38911549]
[1664648698897,1.46781785,19270.0,19268.0,0.38911549]
[1664648699922,1.46781785,19270.0,19269.0,0.14979745]
[1664648700156,1.12722034,19270.0,19268.0,0.38911549]
[1664648700395,1.12722034,19270.0,19269.0,0.14979745]
[1664648700614,1.48573834,19270.0,19268.0,0.38911549]
[1664648700836,1.12722034,19270.0,19268.0,0.38911549]
[1664648702245,1.12722034,19270.0,19269.0,0.0099965]
[1664648702465,1.65599934,19270.0,19269.0,0.0099965]
[1664648706031,1.29748134,19270.0,19269.0,0.0099965]
[1664648706253,1.65599934,19270.0,19269.0,0.0099965]
[1664648709677,1.69659685,19270.0,19269.0,0.0099965]
[1664648710104,1.65599934,19270.0,19269.0,0.0099965]
[1664648713393,1.69659685,19270.0,19269.0,0.0099965]
[1664648713595,2.08708823,19270.0,19269.0,0.0099965]
[1664648714135,1.69659685,19270.0,19269.0,0.0099965]
[1664648714294,2.08708823,19270.0,19269.0,0.0099965]
[1664648714872,2.14798379,19270.0,19269.0,0.0099965]
[1664648715103,1.72857023,19270.0,19269.0,0.0099965]
[1664648715321,2.14798379,19270.0,19269.0,0.0099965]
[1664648717680,2.18856266,19270.0,19269.0,0.0099965]
[1664648718368,2.10738628,19270.0,19269.0,0.0099965]
[1664648719054,2.10738628,19270.0,19269.0,0.00987929]
[1664648719948,2.18856266,19270.0,19269.0,0.00987929]
[1664648722557,1.82998379,19270.0,19269.0,0.00987929]
[1664648723250,2.18850179,19270.0,19269.0,0.00987929]
[1664648724229,2.42456916,19270.0,19269.0,0.00987929]
[1664648725150,2.22906294,19270.0,19269.0,0.00987929]
[1664648725371,2.42456576,19270.0,19269.0,0.00987929]
[1664648728038,2.18849897,19270.0,19269.0,0.00987929]
[1664648728246,2.42445121,19270.0,19269.0,0.00987929]
[1664648728931,2.18849709,19270.0,19269.0,0.00987929]
[1664648730053,2.12760623,19270.0,19269.0,0.00987929]
[1664648730528,2.70022808,19270.0,19269.0,0.00987929]
[1664648730727,2.70022808,19270.0,19268.0,0.25927049]
[1664648730954,0.68310525,19269.0,19268.0,0.25927049]
[1664648731644,0.3,19269.0,19268.0,0.25927049]
[1664648731883,0.34059425,19269.0,19268.0,0.25927049]
[1664648732100,0.69911225,19269.0,19268.0,0.25927049]
[1664648732439,0.658518,19269.0,19268.0,0.25927049]
[1664648732671,0.3,19269.0,19268.0,0.25927049]
[1664648733360,0.658518,19269.0,19268.0,0.25927049]
[1664648734164,2.19841616,19270.0,19268.0,0.25927049]
[1664648734407,0.358518,19269.0,19268.0,0.25927049]
[1664648734622,0.658518,19269.0,19268.0,0.25927049]
[1664648735060,0.3,19269.0,19268.0,0.25927049]
[1664648735242,0.658518,19269.0,19268.0,0.25927049]
[1664648736417,2.19842616,19270.0,19268.0,0.25927049]
[1664648736634,0.358518,19269.0,19268.0,0.25927049]
[1664648736842,0.25958472,19270.0,19268.0,0.25927049]
[1664648737059,0.358518,19269.0,19268.0,0.25927049]
[1664648737275,0.55958472,19270.0,19268.0,0.25927049]
[1664648737449,0.358518,19269.0,19268.0,0.25927049]
[1664648737674,0.3,19269.0,19268.0,0.25927049]
[1664648737923,0.658518,19269.0,19268.0,0.25927049]
[1664648738186,0.3,19269.0,19268.0,0.25927049]
[1664648738384,0.658518,19269.0,19268.0,0.25927049]
[1664648739050,0.3,19269.0,19268.0,0.25927049]
[1664648739285,0.658518,19269.0,19268.0,0.25927049]
[1664648739566,0.3,19269.0,19268.0,0.25927049]
[1664648740675,0.658518,19269.0,19268.0,0.25927049]
[1664648740898,0.3,19269.0,19268.0,0.25927049]
[1664648741073,0.658518,19269.0,19268.0,0.25927049]
[1664648741699,0.3,19269.0,19268.0,0.25927049]
[1664648741887,0.658518,19269.0,19268.0,0.25927049]
[1664648742107,0.3,19269.0,19268.0,0.25927049]
[1664648742666,0.658518,19269.0,19268.0,0.25927049]
[1664648743275,0.3,19269.0,19268.0,0.25927049]
[1664648743719,0.658518,19269.0,19268.0,0.25927049]
[1664648743929,0.3,19269.0,19268.0,0.25927049]
[1664648744377,0.3,19269.0,19268.0,0.25920824]
[1664648744819,0.658518,19269.0,19268.0,0.25920824]
[1664648745031,0.3,19269.0,19268.0,0.25920824]
[1664648746140,0.658518,19269.0,19268.0,0.25920824]
[1664648746684,0.3,19269.0,19268.0,0.25920824]
[1664648746866,0.658518,19269.0,19268.0,0.25920824]
[1664648747555,0.69911225,19269.0,19268.0,0.25920824]
[1664648747778,0.3,19269.0,19268.0,0.25920824]
[1664648747954,0.658518,19269.0,19268.0,0.25920824]
[1664648748844,0.69911225,19269.0,19268.0,0.25920824]
[1664648749486,0.3,19269.0,19268.0,0.25920824]
[1664648749714,0.658518,19269.0,19268.0,0.25920824]
[1664648749956,0.76000362,19269.0,19268.0,0.25920824]
[1664648750171,1.08960363,19269.0,19268.0,0.25920824]
[1664648750382,1.150495,19269.0,19268.0,0.25920824]
[1664648750541,1.08960363,19269.0,19268.0,0.25920824]
[1664648750754,0.69911225,19269.0,19268.0,0.25920824]
[1664648751572,0.76000362,19269.0,19268.0,0.25920824]
[1664648752066,0.69911225,19269.0,19268.0,0.25920824]
[1664648752194,0.76000362,19269.0,19268.0,0.25920824]
[1664648752405,0.69911225,19269.0,19268.0,0.25920824]
[1664648752640,0.34059425,19269.0,19268.0,0.25920824]
[1664648752880,0.69911225,19269.0,19268.0,0.25920824]
[1664648753301,0.76000362,19269.0,19268.0,0.25920824]
[1664648753542,0.80058575,19269.0,19268.0,0.25920824]
[1664648754297,0.83255913,19269.0,19268.0,0.25920824]
[1664648754530,1.19107713,19269.0,19268.0,0.25920824]
[1664648754712,1.10990075,19269.0,19268.0,0.25920824]
[1664648755310,1.19107713,19269.0,19268.0,0.25920824]
[1664648757055,0.80058575,19269.0,19268.0,0.25920824]
[1664648757295,0.76001383,19269.0,19268.0,0.25920824]
[1664648757501,0.71940937,19269.0,19268.0,0.25920824]
[1664648758113,0.80058575,19269.0,19268.0,0.25920824]
[1664648759679,0.76001207,19269.0,19268.0,0.25920824]
[1664648760149,0.71940937,19269.0,19268.0,0.25920824]
[1664648760367,0.80058575,19269.0,19268.0,0.25920824]
[1664648760582,0.71940937,19269.0,19268.0,0.25920824]
[1664648760794,0.76001183,19269.0,19268.0,0.25920824]
[1664648761597,0.76001183,19269.0,19267.0,0.129854]
[1664648761804,0.68311346,19268.0,19267.0,0.129854]
[1664648763074,1.64622765,19268.0,19265.0,0.129866]
[1664648763308,0.85050801,19267.0,19264.0,0.1]
[1664648763529,0.642511,19266.0,19264.0,0.1]
[1664648763743,0.358518,19265.0,19264.0,0.1]
[1664648763965,0.3,19265.0,19264.0,0.1]
[1664648764881,0.658518,19265.0,19264.0,0.1]
[1664648765115,0.3,19265.0,19264.0,0.1]
[1664648766161,0.429766,19266.0,19264.0,0.1]
[1664648766394,0.358518,19265.0,19264.0,0.1]
[1664648766628,0.3,19265.0,19264.0,0.09993672]
[1664648767541,0.429766,19266.0,19264.0,0.09993672]
[1664648767764,0.82025738,19266.0,19264.0,0.09993672]
[1664648768207,0.358518,19265.0,19264.0,0.09993672]
[1664648768417,0.429766,19266.0,19264.0,0.09993672]
[1664648768693,0.358518,19265.0,19264.0,0.09993672]
[1664648768925,0.429766,19266.0,19264.0,0.09993672]
[1664648769739,0.358518,19265.0,19264.0,0.09993672]
[1664648769979,0.429766,19266.0,19264.0,0.09993672]
[1664648770178,0.129766,19266.0,19264.0,0.09993672]
[1664648770427,0.429766,19266.0,19264.0,0.09993672]
[1664648772282,0.358518,19265.0,19264.0,0.09993672]
[1664648772553,0.689766,19266.0,19264.0,0.09993672]
[1664648772973,1.08025738,19266.0,19264.0,0.09993672]
[1664648773217,0.689766,19266.0,19264.0,0.09993672]
[1664648773866,1.08025738,19266.0,19264.0,0.09993672]
[1664648774435,0.358518,19265.0,19264.0,0.09993672]
[1664648774669,0.3,19265.0,19264.0,0.09993672]
[1664648776393,0.42858108,19266.0,19264.0,0.09993672]
[1664648776595,0.81907246,19266.0,19264.0,0.09993672]
[1664648776960,0.42858108,19266.0,19264.0,0.09993672]
[1664648777187,0.81907246,19266.0,19264.0,0.09993672]
[1664648777479,0.3,19265.0,19264.0,0.09993672]
[1664648777649,0.42858108,19266.0,19264.0,0.09993672]
[1664648777866,0.81907246,19266.0,19264.0,0.09993672]
[1664648778081,0.42858108,19266.0,19264.0,0.09993672]
[1664648779435,0.358518,19265.0,19264.0,0.09993672]
[1664648779665,0.42858108,19266.0,19264.0,0.09993672]
[1664648779892,0.81907246,19266.0,19264.0,0.09993672]
[1664648780145,0.3,19265.0,19264.0,0.09993672]
[1664648780805,0.658518,19265.0,19264.0,0.09993672]
[1664648781247,0.3,19265.0,19264.0,0.09993672]
[1664648784136,0.09992328,19264.0,19258.0,0.001]
[1664648784359,1.71451982,19263.0,19258.0,0.001]
[1664648784584,1.71451982,19263.0,19259.0,0.005]
[1664648784585,1.4,19261.0,19259.0,0.005]
[1664648784827,1.54343308,19260.0,19259.0,0.005]
[1664648785053,1.67323508,19260.0,19259.0,0.005]
[1664648785310,1.87807441,19260.0,19259.0,0.005]
[1664648785546,1.67323508,19260.0,19259.0,0.005]
[1664648785767,1.93424245,19260.0,19259.0,0.005]
[1664648787183,1.85824245,19260.0,19259.0,0.005]
[1664648787788,1.92124245,19260.0,19259.0,0.005]
[1664648789116,1.85824245,19260.0,19259.0,0.005]
[1664648789942,1.92124245,19260.0,19259.0,0.005]
[1664648790985,1.85824245,19260.0,19259.0,0.005]
[1664648791860,1.92124245,19260.0,19259.0,0.005]
[1664648792075,1.92124245,19260.0,19258.0,0.001]
[1664648792292,0.358518,19259.0,19258.0,0.001]
[1664648792531,1.27670505,19259.0,19258.0,0.001]
[1664648792671,1.66589569,19259.0,19258.0,0.001]
[1664648793377,1.30732664,19259.0,19258.0,0.001]
[1664648793585,1.56732664,19259.0,19258.0,0.001]
[1664648793822,1.56732664,19259.0,19254.0,0.001]
[1664648793823,1.4,19258.0,19254.0,0.001]
[1664648794048,2.18774441,19257.0,19254.0,0.001]
[1664648794289,1.48927108,19256.0,19254.0,0.001]
[1664648794524,1.54343308,19255.0,19254.0,0.001]
[1664648794755,1.41391444,19255.0,19254.0,0.001]
[1664648795219,0.902183,19255.0,19254.0,0.05628]
[1664648795462,0.259672,19255.0,19254.0,0.05628]
[1664648795700,0.559672,19255.0,19254.0,0.001]
[1664648795932,1.125026,19255.0,19254.0,0.001]
[1664648796593,0.735518,19255.0,19254.0,0.001]
[1664648796865,1.125026,19255.0,19254.0,0.001]
[1664648797537,0.389508,19255.0,19254.0,0.05628]
[1664648797770,0.399508,19255.0,19254.0,0.12828]
[1664648797999,0.399508,19255.0,19254.0,0.073]
[1664648798224,0.758026,19255.0,19254.0,0.073]
[1664648798655,0.758026,19255.0,19254.0,0.023]
[1664648799092,0.748026,19255.0,19253.0,0.45450017]
[1664648799349,0.642511,19254.0,19253.0,0.45450017]
[1664648799585,0.389508,19255.0,19253.0,0.45450017]
[1664648799807,0.053,19254.0,19253.0,0.45450017]
[1664648800491,0.353,19254.0,19253.0,0.45450017]
[1664648800935,0.053,19254.0,19253.0,0.45450017]
[1664648801170,0.389508,19255.0,19253.0,0.45450017]
[1664648801646,0.3,19254.0,19253.0,0.45450017]
[1664648801879,0.20483933,19254.0,19253.0,0.32455417]
[1664648802113,1.04625632,19254.0,19253.0,0.132046]
[1664648802358,1.55798776,19254.0,19253.0,0.0021]
[1664648803320,1.61538776,19254.0,19253.0,0.0021]
[1664648803782,1.68238776,19254.0,19253.0,0.0021]
[1664648804012,1.71351833,19254.0,19253.0,0.0021]
[1664648804227,1.71351833,19254.0,19250.0,0.0021]
[1664648804228,0.00394957,19251.0,19250.0,0.0021]
[1664648804508,2.2909609,19251.0,19250.0,0.0021]
[1664648804749,2.3409609,19251.0,19250.0,0.0071]
[1664648805461,2.2909609,19251.0,19250.0,0.0071]
[1664648805690,2.2409609,19251.0,19250.0,0.0071]
[1664648805927,1.71433033,19251.0,19250.0,0.0071]
[1664648806377,1.70693033,19251.0,19250.0,0.0071]
[1664648807065,1.65693033,19251.0,19250.0,0.0071]
[1664648807958,1.71493033,19251.0,19250.0,0.0071]
[1664648809116,1.65693033,19251.0,19250.0,0.0071]
[1664648809794,1.71093033,19251.0,19250.0,0.0071]
[1664648811117,1.65693033,19251.0,19250.0,0.0071]
[1664648811775,1.70893033,19251.0,19250.0,0.0071]
[1664648812438,1.59793033,19251.0,19250.0,0.0071]
[1664648813133,1.15819201,19251.0,19250.0,0.0071]
[1664648813349,1.54593033,19251.0,19250.0,0.0071]
[1664648813779,1.86393033,19251.0,19250.0,0.0071]
[1664648815225,1.41819201,19251.0,19250.0,0.0071]
[1664648815443,1.80593033,19251.0,19250.0,0.0071]
[1664648815665,1.41819201,19251.0,19250.0,0.0071]
[1664648815874,1.86393033,19251.0,19250.0,0.0071]
[1664648816852,1.47619201,19251.0,19250.0,0.0071]
[1664648817080,1.17619201,19251.0,19250.0,0.17338]
[1664648817302,0.77568101,19251.0,19250.0,0.17338]
[1664648817737,0.26394957,19251.0,19250.0,0.17338]
[1664648817958,0.32394957,19251.0,19250.0,0.549546]
[1664648818401,0.32394957,19251.0,19250.0,0.191028]
[1664648819115,0.32394957,19251.0,19250.0,0.75658308]
[1664648819350,0.32394957,19251.0,19250.0,1.20805452]
[1664648819351,0.26394957,19251.0,19250.0,1.20805452]
[1664648819566,0.26385743,19251.0,19250.0,1.20805452]
[1664648820016,0.34285743,19251.0,19250.0,1.20805452]
[1664648820473,0.34285743,19251.0,19250.0,1.25805452]
[1664648820702,0.34285743,19251.0,19250.0,1.20805452]
[1664648820917,0.34285743,19251.0,19250.0,0.84953652]
[1664648821143,0.34285743,19251.0,19250.0,1.20805452]
[1664648821366,0.26385743,19251.0,19250.0,1.20805452]
[1664648821952,0.34285743,19251.0,19250.0,1.20805452]
[1664648822354,0.34285743,19251.0,19250.0,3.76916287]
[1664648822587,0.34285743,19251.0,19250.0,3.76936336]
[1664648822822,0.34285743,19251.0,19250.0,3.38172498]
[1664648823048,0.34285743,19251.0,19250.0,3.00831452]
[1664648823267,0.26385743,19251.0,19250.0,0.90979652]
[1664648823492,0.26385743,19251.0,19250.0,1.26831452]
[1664648823975,0.34285743,19251.0,19250.0,1.26831452]
[1664648824893,0.34285743,19251.0,19250.0,1.20805452]
[1664648825355,0.26385743,19251.0,19250.0,1.20805452]
[1664648825546,0.26385743,19251.0,19250.0,1.25805452]
[1664648825807,0.26385743,19251.0,19250.0,1.20805452]
[1664648826025,0.34285743,19251.0,19250.0,1.25805452]
[1664648827174,0.34285743,19251.0,19250.0,0.89953652]
[1664648827402,0.26385743,19251.0,19250.0,1.25805452]
[1664648827830,0.26385743,19251.0,19250.0,0.89953652]
[1664648827986,0.34285743,19251.0,19250.0,1.25805452]
[1664648829274,0.26385743,19251.0,19250.0,1.25805452]
[1664648830073,0.34285743,19251.0,19250.0,1.25805452]
[1664648831405,0.26385743,19251.0,19250.0,1.25805452]
[1664648831875,0.34285743,19251.0,19250.0,1.25805452]
[1664648833241,0.26385743,19251.0,19250.0,1.25805452]
[1664648833944,0.31385743,19251.0,19250.0,1.25805452]
[1664648835045,0.31385743,19251.0,19250.0,1.38792452]
[1664648835529,0.26385743,19251.0,19250.0,1.38792452]
[1664648835989,0.31385743,19251.0,19250.0,1.38792452]
[1664648837134,0.26385743,19251.0,19250.0,1.38792452]
[1664648838064,0.33685743,19251.0,19250.0,1.38792452]
[1664648839217,0.26385743,19251.0,19250.0,1.38792452]
[1664648839479,0.26385743,19251.0,19250.0,1.08438652]
[1664648839701,0.26385743,19251.0,19250.0,0.72586852]
[1664648839923,0.30985743,19251.0,19250.0,0.72586852]
[1664648840144,0.30985743,19251.0,19250.0,1.13966652]
[1664648840826,0.30985743,19251.0,19250.0,1.13438652]
[1664648841255,0.26385743,19251.0,19250.0,1.455027]
[1664648841922,0.31385743,19251.0,19250.0,1.455027]
[1664648842817,0.31385743,19251.0,19250.0,1.505027]
[1664648843046,0.31385743,19251.0,19250.0,1.13438652]
[1664648843285,0.26385743,19251.0,19250.0,1.13438652]
[1664648843942,0.31385743,19251.0,19250.0,1.13438652]
[1664648844842,0.31385743,19251.0,19250.0,1.18438652]
[1664648845348,0.31377735,19251.0,19250.0,3.05425652]
[1664648845525,0.31377735,19251.0,19250.0,3.55030057]
[1664648845761,0.26377735,19251.0,19250.0,3.55030057]
[1664648846000,0.31377735,19251.0,19250.0,3.55030057]
[1664648847853,0.26377735,19251.0,19250.0,3.55030057]
[1664648848071,0.31377735,19251.0,19250.0,3.55030057]
[1664648849182,0.26377735,19251.0,19250.0,3.55030057]
[1664648850098,0.31377735,19251.0,19250.0,3.55030057]
[1664648850568,0.31377735,19251.0,19250.0,3.42043057]
[1664648851048,0.31377735,19251.0,19250.0,6.08257907]
[1664648851271,0.26377735,19251.0,19250.0,6.08257907]
[1664648852231,0.32177735,19251.0,19250.0,6.08257907]
[1664648852778,0.32177735,19251.0,19250.0,6.98257907]
[1664648853034,0.32177735,19251.0,19250.0,6.62406107]
[1664648853260,0.32177735,19251.0,19250.0,6.98257907]
[1664648853490,0.26377735,19251.0,19250.0,6.98257907]
[1664648854087,0.32177735,19251.0,19250.0,6.98257907]
[1664648855401,0.26377735,19251.0,19250.0,6.98257907]
[1664648856099,0.32177735,19251.0,19250.0,6.98257907]
[1664648857310,0.26377735,19251.0,19250.0,6.98257907]
[1664648857517,0.26377735,19251.0,19250.0,7.37015018]
[1664648857642,0.26377735,19251.0,19250.0,6.98257907]
[1664648858054,0.32177735,19251.0,19250.0,6.98257907]
[1664648859367,0.26377735,19251.0,19250.0,6.98257907]
[1664648860022,0.32177735,19251.0,19250.0,6.98257907]
[1664648860737,0.32177735,19251.0,19250.0,6.62406107]
[1664648860989,0.32177735,19251.0,19250.0,6.98257907]
[1664648861436,0.26377735,19251.0,19250.0,6.98257907]
[1664648862213,0.32177735,19251.0,19250.0,6.98257907]
[1664648863349,0.26377735,19251.0,19250.0,6.98257907]
[1664648864216,0.33777735,19251.0,19250.0,7.3702839]
[1664648865124,0.33777735,19251.0,19250.0,4.32043057]
[1664648865339,0.26377735,19251.0,19250.0,4.70816889]
[1664648866255,0.32177735,19251.0,19250.0,4.70816889]
[1664648867344,0.26377735,19251.0,19250.0,7.53339273]
[1664648868136,0.27377735,19251.0,19250.0,7.21665441]
[1664648868355,0.27377735,19251.0,19250.0,6.70439273]
[1664648868572,0.27377735,19251.0,19250.0,3.49143057]
[1664648869531,0.26377735,19251.0,19250.0,3.80816889]
[1664648869934,0.2637105,19251.0,19250.0,3.80816889]
[1664648870146,0.2737105,19251.0,19250.0,3.87916889]
[1664648870417,0.2737105,19251.0,19250.0,3.49143057]
[1664648870538,0.2737105,19251.0,19250.0,3.87916889]
[1664648871000,0.2737105,19251.0,19250.0,3.49143057]
[1664648871521,0.2637105,19251.0,19250.0,3.42043057]
[1664648871746,0.2637105,19251.0,19250.0,2.92438652]
[1664648872193,0.2737105,19251.0,19250.0,2.99538652]
[1664648872813,0.2737105,19251.0,19250.0,1.25538652]
[1664648873407,0.2637105,19251.0,19250.0,1.18438652]
[1664648874104,0.2737105,19251.0,19250.0,1.25538652]
[1664648874981,0.2737105,19251.0,19250.0,1.49721067]
[1664648875409,0.2637105,19251.0,19250.0,1.42621067]
[1664648876124,0.2737105,19251.0,19250.0,1.49721067]
[1664648877479,0.2637105,19251.0,19250.0,1.42621067]
[1664648877699,0.2637105,19251.0,19250.0,1.37621067]
[1664648878176,0.2737105,19251.0,19250.0,1.49721067]
[1664648879066,0.2737105,19251.0,19250.0,4.23894398]
[1664648879528,0.2637105,19251.0,19250.0,4.16794398]
[1664648880172,0.2737105,19251.0,19250.0,4.23894398]
[1664648880851,0.2737105,19251.0,19250.0,4.36881398]
[1664648881503,0.2637105,19251.0,19250.0,4.29781398]
[1664648882186,0.2737105,19251.0,19250.0,4.36881398]
[1664648883871,0.2637105,19251.0,19250.0,4.29781398]
[1664648884304,0.2737105,19251.0,19250.0,4.36881398]
[1664648885219,0.2737105,19251.0,19250.0,4.01029598]
[1664648885439,0.2637105,19251.0,19250.0,4.29781398]
[1664648886367,0.2737105,19251.0,19250.0,4.36881398]
[1664648887507,0.2637105,19251.0,19250.0,4.29781398]
[1664648888290,0.2637105,19251.0,19250.0,4.62855398]
[1664648888291,0.2737105,19251.0,19250.0,4.62855398]
[1664648888549,0.2737105,19251.0,19250.0,4.66914446]
[1664648888769,0.2737105,19251.0,19250.0,5.18862446]
[1664648889375,0.2737105,19251.0,19250.0,5.11762446]
[1664648889571,0.2637105,19251.0,19250.0,5.11762446]
[1664648889809,0.2637105,19251.0,19250.0,5.1175554]
[1664648890263,0.2737105,19251.0,19250.0,5.1885554]
[1664648891533,0.2637105,19251.0,19250.0,5.17844113]
[1664648892229,0.2637105,19251.0,19250.0,5.1175554]
[1664648892461,0.2737105,19251.0,19250.0,5.39444369]
[1664648892700,0.2737105,19251.0,19250.0,5.1885554]
[1664648893504,0.00234984,19252.0,19251.0,0.25976093]
[1664648893723,0.00234984,19252.0,19251.0,3.7757259]
[1664648894246,0.01134984,19252.0,19251.0,3.8497259]
[1664648895739,0.01134984,19252.0,19251.0,3.7807259]
[1664648895952,0.00234984,19252.0,19251.0,3.7807259]
[1664648896184,0.00234984,19252.0,19251.0,3.8497259]
[1664648896401,0.01134984,19252.0,19251.0,3.8497259]
[1664648897524,0.00234984,19252.0,19251.0,3.7807259]
[1664648898372,0.01134984,19252.0,19251.0,3.8497259]
[1664648899460,0.00234984,19252.0,19251.0,3.7807259]
[1664648900317,0.01134984,19252.0,19251.0,3.8497259]
[1664648901705,0.00234984,19252.0,19251.0,3.7807259]
[1664648902383,0.01134984,19252.0,19251.0,3.8497259]
[1664648903509,0.00234984,19252.0,19251.0,3.7807259]
[1664648904388,0.02234984,19252.0,19251.0,3.8557259]
[1664648904701,0.28234984,19252.0,19251.0,3.8557259]
[1664648905410,0.02234984,19252.0,19251.0,3.8557259]
[1664648905631,0.00234984,19252.0,19251.0,3.7807259]
[1664648906345,0.00234984,19252.0,19251.0,3.8557259]
[1664648906582,0.02234984,19252.0,19251.0,3.8557259]
[1664648907248,0.02234984,19252.0,19251.0,2.99564342]
[1664648908150,0.00234984,19252.0,19251.0,6.0066615]
[1664648908414,0.02434984,19252.0,19251.0,8.001707]
[1664648908636,0.02434984,19252.0,19251.0,8.39010498]
[1664648909109,0.389475,19257.0,19256.0,0.14979745]
[1664648909333,1.00291038,19260.0,19256.0,0.14979745]
[1664648909334,0.519234,19260.0,19256.0,1.08502664]
[1664648909573,0.38944,19259.0,19257.0,0.389766]
[1664648909792,0.33444,19259.0,19257.0,0.389766]
[1664648910014,0.358518,19258.0,19257.0,0.519495]
[1664648910258,0.358518,19258.0,19257.0,1.17637618]
[1664648910507,0.005,19259.0,19258.0,0.129723]
[1664648910728,0.005,19259.0,19258.0,0.538241]
[1664648910973,0.005,19259.0,19258.0,0.179723]
[1664648911192,0.005,19259.0,19258.0,0.93020343]
[1664648911487,0.005,19259.0,19258.0,1.09948535]
[1664648911720,0.129795,19261.0,19259.0,0.129718]
[1664648911921,0.389377,19262.0,19260.0,0.14979745]
[1664648912145,0.358518,19261.0,19260.0,0.14979745]
[1664648912383,0.071,19262.0,19259.0,0.519445]
[1664648912620,0.371,19262.0,19260.0,0.389697]
[1664648912870,0.358518,19261.0,19260.0,0.389697]
[1664648913098,0.371,19262.0,19260.0,0.389697]
[1664648913319,0.358518,19261.0,19260.0,0.389697]
[1664648914004,0.3,19262.0,19260.0,0.389697]
[1664648914229,0.689377,19262.0,19260.0,0.389697]
[1664648914447,0.071,19261.0,19260.0,0.389697]
[1664648914663,0.429518,19261.0,19260.0,0.389697]
[1664648915508,0.358518,19261.0,19260.0,0.389697]
[1664648915738,0.689377,19262.0,19260.0,0.389697]
[1664648916403,0.358518,19261.0,19260.0,0.389697]
[1664648916780,0.760377,19262.0,19260.0,0.389697]
[1664648917006,0.358518,19261.0,19260.0,0.389697]
[1664648917236,0.071,19262.0,19260.0,0.389697]
[1664648917458,0.358518,19261.0,19260.0,0.389697]
[1664648917967,0.358398,19261.0,19260.0,0.379697]
[1664648918095,0.358285,19261.0,19260.0,0.379697]
[1664648918320,0.071,19261.0,19260.0,0.379697]
[1664648918564,0.07076,19261.0,19260.0,0.379697]
[1664648918774,0.429047,19261.0,19260.0,0.379697]
[1664648918982,0.07064,19261.0,19260.0,0.379697]
[1664648919226,0.429047,19261.0,19260.0,0.379697]
[1664648919441,0.07064,19261.0,19260.0,0.379697]
[1664648919582,0.389377,19262.0,19260.0,0.379697]
[1664648919793,0.358407,19261.0,19260.0,0.379697]
[1664648920023,0.519132,19263.0,19260.0,0.379697]
[1664648920243,0.747784,19262.0,19260.0,0.379697]
[1664648920458,0.414039,19261.0,19260.0,0.379697]
[1664648920671,0.072,19261.0,19260.0,0.379697]
[1664648921690,0.389377,19262.0,19260.0,0.379697]
[1664648921853,0.358407,19261.0,19260.0,0.64742552]
[1664648922070,0.129786,19263.0,19260.0,1.4427921]
[1664648922276,0.18199802,19265.0,19262.0,0.14979745]
[1664648922488,0.74775,19264.0,19262.0,0.40956945]
[1664648922743,0.342039,19263.0,19262.0,0.40956945]
[1664648924492,0.404039,19263.0,19262.0,0.40956945]
[1664648925643,1.02899858,19263.0,19262.0,0.259772]
[1664648925870,0.72899858,19263.0,19262.0,0.259772]
[1664648926110,1.02899858,19263.0,19262.0,0.259772]
[1664648926576,0.698039,19263.0,19262.0,0.259772]
[1664648926803,1.08499858,19263.0,19262.0,0.259772]
[1664648927725,1.02899858,19263.0,19262.0,0.259772]
[1664648928608,1.08499858,19263.0,19262.0,0.259772]
[1664648928860,0.398039,19263.0,19262.0,0.259772]
[1664648929098,0.056,19263.0,19262.0,0.3087382]
[1664648929310,0.056,19263.0,19262.0,0.49268602]
[1664648929791,5.2311564,19266.0,19262.0,0.49268602]
[1664648930022,0.358407,19265.0,19262.0,0.49268602]
[1664648930251,0.471817,19264.0,19262.0,0.44371982]
[1664648930554,0.129778,19264.0,19262.0,0.44371982]
[1664648930784,0.358407,19263.0,19262.0,0.44371982]
[1664648931003,0.129778,19264.0,19262.0,0.44371982]
[1664648931236,0.358407,19263.0,19262.0,0.44371982]
[1664648931492,0.429778,19264.0,19262.0,0.44371982]
[1664648931493,0.129778,19264.0,19262.0,0.44371982]
[1664648931722,0.358407,19263.0,19262.0,0.44371982]
[1664648931965,0.129778,19264.0,19262.0,0.44371982]
[1664648932193,0.358407,19263.0,19262.0,0.44371982]
[1664648932419,0.129778,19264.0,19262.0,0.44371982]
[1664648932638,0.358407,19263.0,19262.0,0.44371982]
[1664648933118,0.191778,19264.0,19262.0,0.44371982]
[1664648933340,0.358407,19263.0,19262.0,0.44371982]
[1664648933562,0.751329,19264.0,19262.0,0.44371982]
[1664648933563,0.45133,19264.0,19262.0,0.44371982]